bitfinex-derivatives/quotes_ETHF0:USTF0_20241229
["timestamp","ask_amount","ask_price","bid_price","bid_amount"]
[1735487393303,0.29634,3380.0,3379.9,3.50414]
[1735487394309,1.17354,3380.1,3380.0,0.29634]
[1735487394503,0.8772,3380.1,3380.0,0.29634]
[1735487394704,1.17353,3380.1,3380.0,0.29634]
[1735487396513,0.8772,3380.1,3380.0,0.29634]
[1735487398612,1.17353,3380.1,3380.0,0.29634]
[1735487400017,0.8772,3380.1,3380.0,0.29634]
[1735487400510,0.29634,3380.0,3379.9,3.50415]
[1735487400710,0.8772,3380.1,3379.9,3.50415]
[1735487401014,1.17354,3380.1,3380.0,0.29634]
[1735487401215,0.8772,3380.1,3380.0,0.29634]
[1735487403215,0.8772,3380.1,3379.9,3.2078]
[1735487403911,1.17353,3380.1,3380.0,0.29634]
[1735487404118,1.17353,3380.1,3379.9,3.2078]
[1735487404314,1.17353,3380.1,3379.9,3.50415]
[1735487404624,1.17354,3380.1,3380.0,0.29634]
[1735487406119,0.8772,3380.1,3380.0,0.29634]
[1735487407214,1.17353,3380.1,3380.0,0.29634]
[1735487408015,0.8772,3380.1,3380.0,0.29634]
[1735487409116,1.17353,3380.1,3380.0,0.29634]
[1735487410617,1.17353,3380.1,3379.9,2.52768775]
[1735487411121,0.29628,3380.8,3380.5,0.29629]
[1735487411317,0.8898,3380.6,3380.5,2.52763775]
[1735487411517,0.8898,3380.6,3380.5,43.32763775]
[1735487411819,1.18609,3380.6,3380.5,40.8]
[1735487412224,0.29632,3380.3,3380.0,3.2078]
[1735487412420,4.0976,3380.6,3380.0,3.2078]
[1735487412421,0.29633,3380.2,3380.0,3.2078]
[1735487412618,1.18833,3380.1,3380.0,3.2078]
[1735487412920,1.18833,3380.1,3380.0,5.43913775]
[1735487412921,0.892,3380.1,3380.0,5.43913775]
[1735487413220,0.892,3380.1,3380.0,3.2078]
[1735487413629,1.18833,3380.1,3380.0,3.2078]
[1735487413825,0.892,3380.1,3380.0,3.2078]
[1735487414026,0.29631,3380.4,3380.0,5.73547775]
[1735487414326,0.8782,3380.5,3380.1,0.4303]
[1735487414816,0.8782,3380.5,3380.4,0.29631]
[1735487415016,0.4616,3380.8,3380.7,0.29628]
[1735487415217,3.46438333,3381.0,3380.9,0.29626]
[1735487415823,3.46438333,3381.0,3380.9,41.09626]
[1735487416418,3.46438333,3381.2,3380.9,40.8]
[1735487416621,3.46438333,3381.2,3381.1,2.52757775]
[1735487417326,3.46438333,3381.2,3381.1,0.29624]
[1735487417624,3.76062333,3381.2,3381.0,2.23133775]
[1735487417823,0.4368,3381.3,3381.0,2.23133775]
[1735487417824,1.18343,3381.3,3381.0,2.23133775]
[1735487418023,1.18343,3381.3,3381.1,0.29624]
[1735487418223,1.18343,3381.3,3380.7,2.23133775]
[1735487418224,0.8872,3381.3,3380.7,2.23133775]
[1735487418430,0.8872,3381.3,3380.6,0.4468]
[1735487418625,0.2963,3380.5,3380.4,4.58239318]
[1735487418920,3.5041,3380.5,3380.4,4.58239318]
[1735487419125,0.29631,3380.3,3380.2,4.58239318]
[1735487420228,0.29632,3380.2,3380.1,2.23133775]
[1735487420424,0.29632,3380.2,3380.1,2.52766775]
[1735487420622,0.4662,3380.4,3380.1,2.52766775]
[1735487420822,0.29632,3380.2,3380.1,2.52766775]
[1735487421023,0.29632,3380.3,3380.2,0.29632]
[1735487421224,3.2078,3380.5,3380.1,2.23133775]
[1735487421416,3.2078,3380.5,3380.4,2.52764775]
[1735487421825,0.75958,3380.8,3380.6,0.29629]
[1735487422131,0.75958,3380.8,3380.7,41.2294]
[1735487422435,3.46438333,3381.0,3380.9,0.29626]
[1735487422828,0.29627,3380.9,3380.7,43.46073775]
[1735487423233,0.29627,3380.9,3380.7,43.75701775]
[1735487423425,3.46438333,3381.0,3380.7,41.2294]
[1735487423621,0.29627,3380.9,3380.7,41.2294]
[1735487423827,0.29627,3380.8,3380.7,41.2294]
[1735487424129,8.27117777,3381.2,3380.7,41.52568]
[1735487424130,0.29627,3380.9,3380.7,41.52568]
[1735487424431,3.652,3381.2,3380.7,43.46073775]
[1735487424631,3.94824,3381.2,3380.8,0.29627]
[1735487424819,3.94824,3381.2,3380.9,0.29626]
[1735487425026,3.94824,3381.2,3381.0,0.29625]
[1735487425322,3.652,3381.2,3381.0,0.29625]
[1735487425523,3.652,3381.2,3380.7,43.46073775]
[1735487425722,0.29626,3380.9,3380.7,43.75700775]
[1735487425928,3.50404,3381.2,3381.0,0.29625]
[1735487426132,3.50404,3381.2,3381.1,0.43]
[1735487427125,3.2078,3381.2,3381.1,0.72624]
[1735487427329,3.2078,3381.2,3381.1,0.43]
[1735487427527,3.50404,3381.2,3381.1,0.43]
[1735487428330,3.2078,3381.2,3381.1,0.43]
[1735487428533,3.2078,3381.2,3381.1,0.72624]
[1735487428534,3.50404,3381.2,3381.1,0.72624]
[1735487428733,3.2078,3381.2,3381.1,0.43]
[1735487429036,3.2078,3381.2,3381.1,0.72624]
[1735487429330,3.2078,3381.2,3381.1,1.17004]
[1735487430232,3.90368333,3381.5,3381.1,0.8738]
[1735487430431,0.29624,3381.2,3381.1,1.17004]
[1735487430822,0.29624,3381.2,3381.1,0.29624]
[1735487431029,0.29625,3381.0,3380.8,0.29627]
[1735487431231,0.29626,3380.9,3380.8,0.29627]
[1735487431432,0.29626,3380.9,3380.7,2.95701775]
[1735487431936,0.29625,3381.0,3380.8,0.29627]
[1735487432128,0.29625,3381.0,3380.9,40.8]
[1735487432638,5.80883823,3382.0,3381.2,0.74058]
[1735487432935,5.80883823,3382.0,3381.9,5.73530775]
[1735487433131,5.80883823,3382.0,3381.9,3.50397]
[1735487433332,5.80883823,3382.0,3381.9,5.73530775]
[1735487433526,5.80883823,3382.0,3381.9,3.2078]
[1735487433737,5.80883823,3382.0,3381.9,3.50397]
[1735487434136,0.29612,3382.5,3382.1,0.29616]
[1735487434334,0.29612,3382.5,3382.3,3.2078]
[1735487434534,0.75781,3382.6,3382.3,3.2078]
[1735487434737,0.4617,3382.6,3382.3,3.2078]
[1735487436038,0.4617,3382.6,3382.3,3.50394]
[1735487436539,0.75781,3382.6,3382.3,3.50394]
[1735487436840,0.29613,3382.4,3382.3,3.20450034]
[1735487448960,0.4442,3382.7,3382.3,3.20450034]
[1735487449262,0.73652,3382.6,3382.4,0.29612]
[1735487449857,0.4404,3382.6,3382.4,0.29612]
[1735487450052,0.29613,3382.4,3382.3,3.20450034]
[1735487450558,0.29613,3382.4,3382.3,3.50064034]
[1735487451161,0.29613,3382.4,3382.3,3.20450034]
[1735487451362,0.29613,3382.4,3382.3,3.50064034]
[1735487451757,0.29613,3382.4,3382.3,3.20450034]
[1735487455365,0.4404,3382.6,3381.9,3.2078]
[1735487455662,0.29617,3382.0,3381.9,3.6555]
[1735487458866,0.29617,3382.0,3381.9,3.2078]
[1735487460564,0.29617,3382.0,3381.5,3.2078]
[1735487460565,0.2962,3381.6,3381.5,3.2078]
[1735487466568,0.2962,3381.6,3381.5,5.43913775]
[1735487466870,0.2962,3381.6,3381.5,5.73534775]
[1735487467263,0.2962,3381.6,3381.5,5.43913775]
[1735487467971,10.95600305,3382.6,3381.5,5.43913775]
[1735487468160,0.29616,3382.1,3382.0,3.2078]
[1735487471473,0.29618,3381.8,3381.7,0.29619]
[1735487472471,1.20133,3382.5,3381.6,5.46597076]
[1735487472670,0.29616,3382.1,3382.0,0.29616]
[1735487473367,0.29615,3382.2,3382.1,0.29615]
[1735487473675,0.29614,3382.3,3382.2,0.29614]
[1735487473870,0.29614,3382.3,3382.2,1.19984]
[1735487475473,0.29614,3382.3,3382.2,0.9037]
[1735487475676,0.29614,3382.3,3382.2,1.19985]
[1735487476797,0.4591,3382.7,3382.2,0.9037]
[1735487477002,0.29614,3382.4,3382.3,3.2078]
[1735487478509,3.6669,3382.7,3382.2,0.461]
[1735487478799,0.29615,3382.2,3382.1,6.88435614]
[1735487479901,0.29615,3382.3,3382.2,0.29615]
[1735487480206,0.29615,3382.3,3382.2,3.50395]
[1735487480392,0.4591,3382.7,3382.2,3.2078]
[1735487480597,0.29614,3382.3,3382.2,3.50394]
[1735487480908,0.29614,3382.3,3382.2,3.50395]
[1735487481689,0.29614,3382.3,3382.2,3.2078]
[1735487481987,0.29614,3382.3,3382.2,3.50395]
[1735487482375,0.29614,3382.3,3382.2,3.2078]
[1735487482983,0.29614,3382.3,3382.2,7.82496374]
[1735487483982,0.29614,3382.3,3382.2,3.50395]
[1735487484769,0.4591,3382.7,3382.2,3.2078]
[1735487484982,0.29613,3382.5,3382.4,0.29613]
[1735487485375,0.29613,3382.5,3382.4,41.09613]
[1735487485800,0.4591,3382.7,3382.4,40.8]
[1735487485977,0.29612,3382.6,3382.5,0.72681]
[1735487486194,0.29612,3382.6,3382.5,1.3124]
[1735487486378,0.29605,3383.3,3382.8,0.29609]
[1735487486579,5.79190305,3383.4,3383.2,3.2078]
[1735487486885,0.29605,3383.3,3383.2,3.2078]
[1735487487284,5.79190305,3383.4,3383.2,3.2078]
[1735487487483,0.29605,3383.3,3383.2,3.2078]
[1735487488285,0.29609,3382.9,3382.8,7.82496374]
[1735487488597,0.29609,3382.9,3382.8,8.12105374]
[1735487488778,0.29609,3382.9,3382.8,3.50389]
[1735487488976,0.74012,3383.4,3382.8,3.50389]
[1735487489178,0.4567,3383.5,3383.2,3.2078]
[1735487489484,0.29605,3383.3,3383.2,3.2078]
[1735487492081,0.29606,3383.2,3383.1,0.4261]
[1735487492780,1.1968,3383.5,3382.9,0.29608]
[1735487492986,0.29609,3382.9,3382.8,3.2078]
[1735487496191,0.29612,3382.5,3382.4,3.2078]
[1735487497680,4.37692,3383.0,3382.4,3.2078]
[1735487497681,3.6367,3383.0,3382.4,3.2078]
[1735487498086,3.6367,3383.0,3382.4,3.50393]
[1735487498279,0.29612,3382.5,3382.4,3.50393]
[1735487498489,3.6367,3383.0,3382.4,3.2078]
[1735487498688,0.29612,3382.6,3382.5,0.29612]
[1735487499083,0.29612,3382.6,3382.5,41.09612]
[1735487499288,0.29612,3382.6,3382.5,40.8]
[1735487500287,0.29612,3382.5,3382.4,3.2078]
[1735487500494,0.73662,3382.5,3382.4,3.2078]
[1735487503492,0.29614,3382.3,3382.2,40.8]
[1735487504295,0.4644,3382.9,3382.2,40.8]
[1735487504596,0.29614,3382.4,3382.3,0.29614]
[1735487505294,0.29614,3382.4,3382.2,40.8]
[1735487505295,0.29614,3382.4,3382.2,41.09614]
[1735487505598,0.29613,3382.5,3382.3,0.29614]
[1735487506895,0.29612,3382.5,3382.3,0.29614]
[1735487507095,0.29612,3382.5,3382.2,40.8]
[1735487507396,0.4644,3382.9,3382.2,40.8]
[1735487507897,0.29613,3382.4,3382.3,0.29614]
[1735487508895,1.20463,3382.9,3382.2,40.8]
[1735487509089,1.20463,3382.9,3382.3,0.29614]
[1735487509298,0.29612,3382.6,3382.2,40.8]
[1735487509494,0.4644,3382.9,3382.2,40.8]
[1735487509689,0.29611,3382.7,3382.2,40.8]
[1735487510001,0.29611,3382.7,3382.3,0.29614]
[1735487510302,3.2078,3383.0,3382.2,40.8]
[1735487510501,0.29612,3382.6,3382.5,0.29612]
[1735487511203,0.4497,3382.9,3382.2,45.41716374]
[1735487511401,0.29613,3382.5,3382.4,0.29613]
[1735487511700,0.29614,3382.4,3382.3,0.29614]
[1735487511901,0.29614,3382.4,3382.3,4.91330374]
[1735487512296,0.29614,3382.4,3382.3,4.61716374]
[1735487512602,0.4497,3382.9,3382.3,4.61716374]
[1735487512796,0.29609,3382.9,3382.8,0.2961]
[1735487513101,0.8979,3383.3,3382.7,3.2078]
[1735487513294,0.29607,3383.1,3383.0,0.29608]
[1735487513798,0.29607,3383.1,3382.8,1.3104]
[1735487513999,0.29607,3383.1,3382.9,0.29608]
[1735487514500,0.29608,3383.0,3382.9,0.29608]
[1735487514897,0.8979,3383.3,3382.8,5.92756374]
[1735487514898,0.29609,3382.9,3382.8,5.92756374]
[1735487516502,0.29609,3382.9,3382.8,0.4294]
[1735487519503,0.29611,3382.6,3382.5,4.61716374]
[1735487519706,0.29611,3382.6,3382.5,5.05036374]
[1735487520106,0.29611,3382.6,3382.5,4.61716374]
[1735487521910,0.4654,3382.7,3382.3,4.52]
[1735487522111,0.29613,3382.4,3382.3,4.52]
[1735487523309,0.29613,3382.4,3382.3,3.2078]
[1735487524002,2.23133775,3382.5,3382.1,4.60976976]
[1735487524204,5.73528775,3382.2,3382.1,4.60976976]
[1735487524600,6.16818775,3382.2,3382.1,4.60976976]
[1735487525504,6.16818775,3382.2,3381.7,40.8]
[1735487525505,5.87203775,3382.2,3381.7,40.8]
[1735487525705,0.29618,3381.8,3381.7,40.8]
[1735487526311,3.2078,3382.2,3381.7,40.8]
[1735487526509,0.71733,3382.5,3382.3,0.29614]
[1735487526911,0.29613,3382.4,3382.3,0.29614]
[1735487527109,0.29613,3382.4,3382.3,0.9028]
[1735487527610,0.29616,3382.1,3381.7,44.0078]
[1735487527815,0.29616,3382.1,3381.9,0.29617]
[1735487528219,0.29617,3381.9,3381.8,0.4535]
[1735487528606,0.4258,3382.0,3381.7,3.6495]
[1735487528811,0.29618,3381.8,3381.7,3.6495]
[1735487529207,0.29618,3381.8,3381.7,3.2078]
[1735487529815,0.73658,3381.8,3381.7,3.2078]
[1735487530111,0.4404,3381.8,3381.7,3.2078]
[1735487530318,0.29618,3381.9,3381.7,3.50399]
[1735487530516,0.29618,3381.9,3381.7,3.2078]
[1735487530717,0.4258,3382.0,3381.7,3.2078]
[1735487530915,0.4258,3382.0,3381.6,40.8]
[1735487531119,0.29619,3381.7,3381.6,45.40941311]
[1735487531416,0.29619,3381.7,3381.6,4.60941311]
[1735487532419,0.29619,3381.7,3381.5,45.70561311]
[1735487533129,0.4258,3382.0,3381.5,45.40941311]
[1735487533322,0.2962,3381.7,3381.5,45.70562311]
[1735487533520,0.4258,3382.0,3381.5,45.40941311]
[1735487533719,0.35244943,3381.6,3381.5,4.60941311]
[1735487533915,0.2962,3381.6,3381.5,4.60941311]
[1735487534116,0.2962,3381.6,3381.5,45.40941311]
[1735487534420,0.2962,3381.6,3381.5,40.8]
[1735487534818,0.2962,3381.6,3381.5,41.09621]
[1735487535617,0.2962,3381.6,3381.5,40.8]
[1735487535823,0.2962,3381.6,3381.5,41.09621]
[1735487536724,0.29619,3381.7,3381.5,41.09621]
[1735487536919,0.29619,3381.7,3381.6,0.2962]
[1735487537320,0.4258,3382.0,3381.4,5.96841311]
[1735487537520,0.29618,3381.9,3381.7,0.29619]
[1735487537720,0.72197,3382.0,3381.8,0.29618]
[1735487537938,0.72197,3382.0,3381.4,5.96841311]
[1735487538218,3.2078,3382.1,3381.9,0.29617]
[1735487538219,3.50396,3382.1,3381.9,0.29617]
[1735487538528,3.2078,3382.1,3382.0,41.99517]
[1735487538732,0.29613,3382.5,3382.0,41.699]
[1735487538925,0.29613,3382.5,3382.3,0.29614]
[1735487539126,0.29614,3382.4,3382.2,0.29614]
[1735487539429,0.29613,3382.5,3382.3,3.50394]
[1735487540026,0.4352,3382.7,3382.3,3.2078]
[1735487540226,0.29613,3382.4,3382.3,3.2078]
[1735487540428,0.29614,3382.3,3382.1,0.72655]
[1735487540629,0.4623,3382.6,3382.1,0.72655]
[1735487540830,0.29615,3382.3,3382.1,0.72655]
[1735487541026,0.4623,3382.6,3382.1,0.4304]
[1735487541330,0.29615,3382.2,3382.1,0.4304]
[1735487541524,1.2026,3382.6,3382.0,41.2633]
[1735487541525,0.29616,3382.1,3382.0,41.2633]
[1735487542129,0.29616,3382.1,3382.0,0.4633]
[1735487543228,0.29616,3382.1,3382.0,0.75947]
[1735487543429,0.4623,3382.6,3382.0,0.75947]
[1735487543630,0.29615,3382.3,3382.0,0.4633]
[1735487543831,0.29614,3382.4,3382.0,0.4633]
[1735487544020,0.29614,3382.4,3382.3,0.29614]
[1735487545136,0.29612,3382.6,3382.4,0.29613]
[1735487545333,0.29612,3382.6,3382.5,1.3562]
[1735487545640,0.29611,3382.7,3382.5,1.65232]
[1735487548329,0.29611,3382.7,3382.6,3.2078]
[1735487549932,0.29613,3382.4,3382.3,4.60941311]
[1735487550938,0.29615,3382.2,3382.1,4.60941311]
[1735487552135,3.2078,3382.4,3381.7,5.05171311]
[1735487552439,0.29618,3381.8,3381.7,5.05171311]
[1735487552736,3.2078,3382.4,3381.7,5.05171311]
[1735487552935,3.84425775,3382.5,3381.7,5.05171311]
[1735487552936,0.4453,3382.5,3381.9,3.2078]
[1735487553140,0.4453,3382.5,3382.1,0.29615]
[1735487553339,0.29615,3382.2,3382.1,0.29615]
[1735487553632,0.29613,3382.4,3382.2,0.29614]
[1735487553837,5.09648753,3382.7,3382.5,0.29612]
[1735487553838,0.29612,3382.6,3382.5,0.29612]
[1735487554138,4.64878753,3382.7,3382.5,41.09612]
[1735487554335,0.2961,3382.8,3382.6,0.29611]
[1735487554529,0.2961,3382.7,3382.6,0.29611]
[1735487554731,0.4329,3382.9,3382.5,40.8]
[1735487554933,0.29611,3382.7,3382.5,41.09612]
[1735487556840,0.29611,3382.7,3382.5,45.70553311]
[1735487557041,0.29611,3382.6,3382.5,45.40941311]
[1735487558041,0.4329,3382.9,3382.5,41.09612]
[1735487558240,0.2961,3382.8,3382.7,3.2078]
[1735487563048,0.4329,3382.9,3382.5,45.70553311]
[1735487563346,0.29611,3382.6,3382.5,48.91333311]
[1735487564142,0.29611,3382.6,3382.5,44.30392]
[1735487565148,0.29611,3382.6,3382.5,48.91333311]
[1735487565447,0.29611,3382.6,3382.5,45.70553311]
[1735487565655,0.29611,3382.6,3382.5,48.91333311]
[1735487567642,0.29611,3382.6,3382.5,44.30392]
[1735487568551,0.4329,3382.9,3382.5,44.0078]
[1735487568755,0.2961,3382.8,3382.7,0.2961]
[1735487569649,0.4477,3383.1,3382.6,0.4263]
[1735487569845,0.29609,3382.9,3382.8,0.29609]
[1735487570155,0.29608,3383.0,3382.6,0.4263]
[1735487570451,0.29608,3383.0,3382.9,0.29609]
[1735487570651,0.4541,3383.2,3382.6,0.4263]
[1735487570848,0.4541,3383.2,3382.9,0.29609]
[1735487570849,0.29608,3383.0,3382.9,0.29609]
[1735487571757,0.29608,3383.0,3382.9,3.50389]
[1735487572859,0.29608,3383.1,3383.0,0.29608]
[1735487573350,0.29608,3383.1,3383.0,1.16768]
[1735487573758,0.29608,3383.1,3383.0,0.8716]
[1735487574955,0.29608,3383.1,3383.0,0.4487]
[1735487575954,0.4541,3383.2,3382.7,4.60941311]
[1735487576160,0.2961,3382.8,3382.7,4.60941311]
[1735487576460,0.2961,3382.8,3382.5,50.92191967]
[1735487576461,0.2961,3382.7,3382.6,4.60941311]
[1735487577456,0.8546,3383.0,3382.5,50.92191967]
[1735487577457,0.8546,3383.0,3382.5,44.0078]
[1735487577657,0.29611,3382.6,3382.5,44.0078]
[1735487577960,0.29611,3382.6,3382.5,44.30392]
[1735487579060,0.29611,3382.6,3382.5,44.0078]
[1735487579859,0.29611,3382.6,3382.5,40.8]
[1735487580259,0.29616,3382.4,3382.3,4.60941311]
[1735487580861,0.29616,3382.4,3382.3,45.40941311]
[1735487581258,0.29616,3382.4,3382.3,40.8]
[1735487581259,0.74166,3382.4,3382.3,40.8]
[1735487582358,0.29619,3382.1,3382.0,7.81721311]
[1735487582757,0.29619,3382.1,3382.0,48.61721311]
[1735487582960,0.29619,3382.1,3382.0,44.0078]
[1735487584866,0.29618,3382.3,3382.2,0.29618]
[1735487585060,0.4422,3382.6,3382.3,0.29616]
[1735487585061,0.29617,3382.4,3382.3,0.29616]
[1735487587364,0.4422,3382.6,3382.1,0.4582]
[1735487587559,0.29618,3382.2,3382.1,0.75438]
[1735487588370,0.29618,3382.2,3382.1,13.50880686]
[1735487588660,0.29618,3382.2,3382.1,13.05060686]
[1735487589069,0.29618,3382.2,3382.1,12.75442686]
[1735487589564,0.29618,3382.2,3382.1,5.83442889]
[1735487591669,0.29618,3382.2,3382.1,6.13061889]
[1735487592264,0.29618,3382.2,3382.1,5.83442889]
[1735487592772,1.18128,3382.2,3382.1,5.83442889]
[1735487594073,0.2962,3381.9,3381.8,40.8]
[1735487595769,0.29622,3381.7,3381.6,4.612525]
[1735487596071,0.29623,3381.6,3381.5,45.412525]
[1735487596270,0.73383,3381.6,3381.5,45.412525]
[1735487596573,7.96516775,3381.6,3381.5,3.192525]
[1735487596865,0.73383,3381.6,3381.5,3.192525]
[1735487597467,0.4376,3381.6,3381.3,8.74340797]
[1735487597672,0.29625,3381.4,3381.3,1.82341]
[1735487600582,0.4376,3381.6,3381.3,1.82341]
[1735487600765,0.29624,3381.5,3381.3,2.55806]
[1735487601069,0.73175,3381.5,3381.3,2.11967]
[1735487601274,0.29625,3381.4,3381.3,1.82341]
[1735487606372,0.29624,3381.5,3381.4,0.29625]
[1735487607171,3.2078,3381.7,3381.6,0.29623]
[1735487608684,3.50402,3381.7,3381.6,0.29623]
[1735487608875,3.50403,3381.7,3381.6,0.29623]
[1735487609078,0.29623,3381.7,3381.6,0.29623]
[1735487609681,0.29623,3381.6,3381.5,0.29623]
[1735487609882,0.29623,3381.7,3381.6,0.29623]
[1735487613482,0.4507,3382.1,3381.4,3.6544]
[1735487613683,4.0829,3382.2,3381.4,3.6544]
[1735487613878,3.6597,3382.2,3382.0,0.2962]
[1735487614078,0.29616,3382.5,3382.4,0.29615]
[1735487614286,0.29615,3382.5,3382.4,0.29615]
[1735487614486,0.29615,3382.6,3382.5,0.29615]
[1735487614681,0.29616,3382.4,3382.3,0.29616]
[1735487614877,0.29616,3382.5,3382.4,0.29616]
[1735487615181,0.29616,3382.5,3382.2,0.4526]
[1735487615384,0.29616,3382.4,3382.3,0.29616]
[1735487615583,0.29616,3382.4,3382.3,41.09616]
[1735487616875,0.29616,3382.4,3382.3,0.29616]
[1735487620384,0.437,3382.7,3382.2,0.4526]
[1735487620585,0.29617,3382.3,3382.2,0.29618]
[1735487627893,0.29617,3382.4,3382.3,0.29616]
[1735487630486,0.437,3382.7,3382.2,0.4648]
[1735487630790,0.29617,3382.3,3382.2,0.76097]
[1735487634799,0.29617,3382.4,3382.3,0.29616]
[1735487635099,0.437,3382.7,3382.2,0.4648]
[1735487635493,0.29616,3382.5,3382.4,0.29615]
[1735487635995,0.29615,3382.6,3382.5,0.29615]
[1735487636311,0.29613,3382.8,3382.7,0.29613]
[1735487636796,3.2078,3382.9,3382.2,2.23133775]
[1735487636995,0.29617,3382.4,3382.3,0.29617]
[1735487637197,0.29617,3382.3,3382.2,0.29617]
[1735487638297,0.29617,3382.3,3382.1,44.4356]
[1735487638298,0.29618,3382.2,3382.1,44.73178]
[1735487638498,1.16916,3382.7,3382.1,44.4356]
[1735487638695,1.16916,3382.7,3382.2,0.29617]
[1735487638696,0.29618,3382.3,3382.2,0.29617]
[1735487639395,1.16916,3382.7,3382.1,44.0078]
[1735487639596,0.29618,3382.2,3382.1,44.30398]
[1735487640494,0.29618,3382.2,3382.1,44.0078]
[1735487640799,0.29618,3382.2,3382.1,44.30399]
[1735487641290,0.9063,3382.5,3382.1,44.30399]
[1735487641493,0.29618,3382.2,3382.1,44.30399]
[1735487641896,0.29618,3382.2,3382.1,44.0078]
[1735487642194,0.29618,3382.2,3382.1,3.2078]
[1735487644598,0.9063,3382.5,3382.1,3.2078]
[1735487644799,0.29617,3382.3,3382.2,0.29618]
[1735487647095,0.29618,3382.2,3382.1,3.2078]
[1735487647296,0.75538,3382.2,3382.1,3.50399]
[1735487647496,0.75538,3382.2,3382.1,3.2078]
[1735487649996,0.75538,3382.2,3382.1,3.50399]
[1735487651104,0.29618,3382.2,3382.1,3.50399]
[1735487652101,0.29618,3382.2,3382.1,0.29619]
[1735487652914,0.2962,3382.0,3381.9,3.2078]
[1735487653100,0.2962,3382.0,3381.9,3.504]
[1735487653305,0.2962,3382.0,3381.9,9.30458227]
[1735487654103,0.29619,3382.1,3382.0,0.29618]
[1735487654309,0.4396,3382.4,3382.0,0.8839]
[1735487654501,0.29618,3382.2,3382.1,0.29618]
[1735487655009,0.2962,3382.1,3382.0,0.29619]
[1735487655606,0.4396,3382.4,3381.9,15.91161003]
[1735487655811,0.7587,3382.0,3381.9,16.20781003]
[1735487656212,0.9063,3382.5,3381.9,15.91161003]
[1735487656506,0.9063,3382.5,3382.3,0.29617]
[1735487656507,0.29616,3382.4,3382.3,0.29617]
[1735487657817,0.29616,3382.4,3382.3,12.99998003]
[1735487658306,0.29616,3382.4,3382.3,12.70381003]
[1735487659607,0.29616,3382.4,3382.3,13.56181003]
[1735487665917,0.29616,3382.4,3382.3,6.65858227]
[1735487667917,0.29616,3382.4,3382.3,5.80058227]
[1735487668216,0.29616,3382.4,3382.3,6.09675227]
[1735487668611,0.29616,3382.4,3382.3,13.03550438]
[1735487673114,0.29616,3382.4,3382.3,12.73933438]
[1735487673920,1.34705525,3382.4,3382.3,12.73933438]
[1735487675420,1.05089525,3382.4,3382.1,6.93875211]
[1735487675618,1.34707525,3382.2,3382.1,6.93875211]
[1735487676325,0.29618,3382.2,3382.1,6.93875211]
[1735487676719,1.351,3382.3,3381.9,6.93875211]
[1735487676926,0.2962,3382.0,3381.9,6.93875211]
[1735487677822,0.2962,3382.0,3381.9,5.80785717]
[1735487680425,0.2962,3381.9,3381.8,3.2078]
[1735487680624,0.7289,3381.9,3381.8,3.2078]
[1735487681122,0.29621,3381.8,3381.7,6.93875211]
[1735487681328,0.29622,3381.7,3381.6,40.8]
[1735487682618,0.73062,3381.7,3381.6,40.8]
[1735487683527,0.29623,3381.6,3381.5,0.4576]
[1735487684025,0.29623,3381.6,3381.5,41.2576]
[1735487687324,3.6405,3381.9,3381.5,41.2576]
[1735487687625,0.29622,3381.7,3381.6,0.29622]
[1735487688925,0.29623,3381.6,3381.5,42.01163]
[1735487690127,0.29623,3381.6,3381.5,42.01164]
[1735487697526,0.29623,3381.6,3381.5,41.7154]
[1735487697726,1.34773137,3381.6,3381.5,0.4576]
[1735487700123,0.29625,3381.4,3381.3,1.82341]
[1735487700330,1.34775137,3381.4,3381.3,1.82341]
[1735487701029,1.34775137,3381.4,3381.3,2.28741]
[1735487702235,0.29625,3381.4,3381.3,2.28741]
[1735487702533,0.29625,3381.4,3381.3,2.58367]
[1735487703331,0.29625,3381.4,3381.3,2.28741]
[1735487703532,0.29625,3381.4,3381.3,2.58367]
[1735487703733,0.29625,3381.4,3381.3,2.28741]
[1735487707035,0.29625,3381.4,3381.3,1.82341]
[1735487709139,0.29625,3381.4,3381.3,2.11967]
[1735487709528,0.29625,3381.4,3381.3,1.82341]
[1735487713626,0.29625,3381.4,3381.3,42.62341]
[1735487713835,0.29625,3381.4,3381.3,43.04371]
[1735487719239,2.68879606,3381.4,3381.3,1.82341]
[1735487721347,7.68879606,3381.4,3381.3,1.12381]
[1735487722939,7.68879606,3381.4,3381.3,0.42421]
[1735487723148,7.39254606,3381.4,3380.9,4.61643529]
[1735487723440,2.68882606,3381.0,3380.9,4.61643529]
[1735487724443,7.68882606,3381.0,3380.9,4.61643529]
[1735487724645,8.13412606,3381.0,3380.9,4.61643529]
[1735487724944,0.29628,3381.0,3380.9,4.61643529]
[1735487725345,0.29629,3380.9,3380.8,5.47933529]
[1735487725741,3.2078,3381.1,3380.8,46.27933529]
[1735487725936,0.29629,3381.0,3380.9,0.29629]
[1735487726143,0.29629,3380.9,3380.8,47.46913769]
[1735487728344,0.29629,3380.9,3380.8,6.66913769]
[1735487729344,0.29629,3380.9,3380.8,5.48553111]
[1735487731349,0.29629,3380.9,3380.8,0.8629]
[1735487731841,0.29632,3380.6,3380.5,3.2078]
[1735487732946,0.29634,3380.4,3380.3,0.4656]
[1735487733745,0.29634,3380.4,3380.3,0.76194]
[1735487733944,0.29634,3380.4,3380.3,0.4656]
[1735487735047,0.29634,3380.4,3380.3,0.76194]
[1735487736653,0.29634,3380.4,3380.3,13.50033368]
[1735487738642,0.29634,3380.4,3380.3,6.56746071]
[1735487743347,3.94854,3380.9,3380.3,6.27112071]
[1735487743548,0.29634,3380.5,3380.4,0.29633]
[1735487743751,3.2078,3380.9,3380.3,6.27112071]